bitfinex-derivatives/quotes_SOLF0:USTF0_20250823
["timestamp","ask_amount","ask_price","bid_price","bid_amount"]
[1755917788513,5.0612,197.65,197.57,5.063]
[1755917788825,5.0612,197.65,197.59,2.67]
[1755917789020,5.0612,197.65,197.61,2.67]
[1755917789216,5.0612,197.65,197.58,2.67]
[1755917789514,5.0612,197.65,197.61,2.67]
[1755917789714,5.0612,197.65,197.58,5.0627]
[1755917789921,5.0612,197.65,197.63,2.67]
[1755917790115,5.0607,197.67,197.59,2.67]
[1755917790321,5.0607,197.67,197.61,2.67]
[1755917791724,5.0607,197.67,197.62,4.80881219]
[1755917792020,5.0607,197.67,197.61,2.67]
[1755917792218,5.0607,197.67,197.63,2.67]
[1755917792420,5.0607,197.67,197.64,2.67]
[1755917796024,5.061,197.66,197.59,2.73]
[1755917796225,5.061,197.66,197.6,9.6665928]
[1755917796518,1.26,197.67,197.61,4.80750131]
[1755917796826,1.26,197.67,197.59,2.73]
[1755917797020,1.26,197.67,197.6,4.80744043]
[1755917797221,5.0614,197.64,197.61,4.80744043]
[1755917797423,5.0614,197.64,197.62,2.73]
[1755917798726,5.0614,197.64,197.57,5.063]
[1755917798934,5.0614,197.64,197.6,2.73]
[1755917799133,5.0614,197.64,197.61,4.80718945]
[1755917799432,5.0614,197.64,197.61,2.73]
[1755917800233,5.0614,197.64,197.58,5.0628]
[1755917800435,5.0614,197.64,197.62,2.73]
[1755917807635,5.0614,197.64,197.58,5.0628]
[1755917807835,1.26,197.67,197.59,9.58125332]
[1755917808035,1.26,197.67,197.6,4.72183289]
[1755917808337,1.26,197.67,197.58,2.73]
[1755917808637,1.26,197.67,197.59,9.58294049]
[1755917808837,1.26,197.67,197.6,4.72266661]
[1755917809041,1.26,197.66,197.58,2.73]
[1755917809239,1.26,197.66,197.59,9.58294024]
[1755917809434,1.26,197.66,197.6,4.72266648]
[1755917809734,5.062,197.62,197.56,5.0633]
[1755917809936,5.062,197.62,197.59,2.73]
[1755917810138,5.062,197.62,197.6,4.72560747]
[1755917810440,5.062,197.62,197.61,4.72903532]
[1755917810839,1.26,197.69,197.61,7.45903532]
[1755917811036,1.26,197.69,197.61,2.73]
[1755917811246,5.0607,197.67,197.62,9.59761322]
[1755917811435,5.0607,197.67,197.64,2.73]
[1755917811635,6.3207,197.67,197.64,2.73]
[1755917811835,5.061,197.66,197.64,2.73]
[1755917814346,5.061,197.66,197.65,2.73]
[1755917814540,5.0605,197.68,197.67,2.73]
[1755917814941,1.26,197.73,197.67,2.73]
[1755917815540,1.26,197.76,197.68,2.73]
[1755917815845,1.26,197.76,197.69,4.7362739]
[1755917816044,1.26,197.76,197.68,2.73]
[1755917816246,1.26,197.76,197.69,4.89280623]
[1755917816446,1.26,197.76,197.7,4.89280623]
[1755917816646,1.26,197.75,197.71,7.62280623]
[1755917816841,5.0592,197.73,197.67,2.73]
[1755917817044,5.0592,197.73,197.68,9.76962022]
[1755917817246,5.0592,197.73,197.71,2.73]
[1755917817547,5.0592,197.73,197.66,5.0607]
[1755917817548,5.0592,197.73,197.72,2.73]
[1755917818147,5.0587,197.75,197.72,2.73]
[1755917818349,26.5491,197.78,197.72,2.73]
[1755917819045,26.5491,197.78,197.61,136.01483261]
[1755917819046,25.2904,197.77,197.69,2.73]
[1755917819254,26.5491,197.78,197.7,7.62399723]
[1755917819549,5.0592,197.73,197.71,4.89399723]
[1755917819748,5.0592,197.73,197.72,4.89399723]
[1755917820148,5.0592,197.73,197.72,4.89307954]
[1755917820346,26.5491,197.78,197.62,2.73]
[1755917820347,25.2891,197.78,197.62,2.73]
[1755917820546,1.26,197.77,197.64,2.73]
[1755917820748,1.26,197.77,197.66,2.73]
[1755917821042,1.26,197.77,197.67,9.81698655]
[1755917821248,1.26,197.77,197.68,9.81698655]
[1755917821551,1.26,197.77,197.69,12.54698655]
[1755917821747,1.26,197.77,197.7,4.89295017]
[1755917822051,5.0592,197.73,197.71,4.89295017]
[1755917822248,5.0592,197.73,197.71,2.73]
[1755917823251,1.26,197.73,197.66,2.88]
[1755917823549,1.26,197.77,197.68,2.88]
[1755917823848,5.0591,197.73,197.7,2.88]
[1755917824050,5.0591,197.73,197.71,7.76867725]
[1755917824250,5.0591,197.73,197.71,2.88]
[1755917826252,5.0594,197.72,197.66,5.0607]
[1755917826450,5.0594,197.72,197.68,2.88]
[1755917826650,5.0594,197.72,197.7,2.88]
[1755917827756,5.0589,197.74,197.7,2.88]
[1755917827955,6.3189,197.74,197.7,2.88]
[1755917828455,1.26,197.74,197.7,2.88]
[1755917829154,5.0594,197.72,197.7,2.88]
[1755917830055,5.06,197.7,197.62,2.88]
[1755917830254,5.06,197.7,197.64,2.88]
[1755917830558,5.06,197.7,197.67,2.88]
[1755917830750,5.06,197.7,197.68,7.7639131]
[1755917830951,5.06,197.7,197.69,4.8839131]
[1755917831151,5.06,197.7,197.69,7.7639131]
[1755917831555,5.0594,197.72,197.7,2.88]
[1755917831759,5.0594,197.72,197.62,2.88]
[1755917831962,5.0594,197.72,197.64,2.88]
[1755917832159,5.0594,197.72,197.66,2.88]
[1755917832458,5.0589,197.74,197.68,2.88]
[1755917832753,5.0589,197.74,197.71,2.88]
[1755917833354,5.0589,197.74,197.72,4.84107217]
[1755917833656,5.0589,197.74,197.72,2.88]
[1755917834354,469.28,197.83,197.73,4.84055222]
[1755917834657,469.28,197.83,197.74,7.72055222]
[1755917834658,1.26,197.81,197.74,7.72055222]
[1755917834957,1.26,197.77,197.66,2.88]
[1755917835159,1.26,197.77,197.67,4.91178219]
[1755917835356,25.2919,197.76,197.68,4.91178219]
[1755917835555,1.26,197.75,197.69,4.91178219]
[1755917835754,1.26,197.75,197.66,2.88]
[1755917835959,1.26,197.75,197.67,4.9116879]
[1755917836160,1.26,197.75,197.68,4.9116879]
[1755917836362,5.0597,197.71,197.69,4.9116879]
[1755917836558,5.0597,197.71,197.64,2.88]
[1755917836760,5.0597,197.71,197.65,11.40612495]
[1755917836957,5.0597,197.71,197.67,2.88]
[1755917837154,5.0597,197.71,197.68,4.91145531]
[1755917837458,5.0597,197.71,197.69,4.91129464]
[1755917837661,5.0597,197.71,197.64,5.0612]
[1755917837861,5.0597,197.71,197.66,2.88]
[1755917838058,5.0597,197.71,197.67,4.91122603]
[1755917838265,6.3197,197.71,197.68,4.91122603]
[1755917838554,6.3197,197.71,197.69,4.91122603]
[1755917838759,6.3197,197.71,197.67,2.88]
[1755917838961,6.3197,197.71,197.68,4.91104222]
[1755917839163,6.3197,197.71,197.69,4.91104222]
[1755917839361,6.3197,197.71,197.67,2.88]
[1755917839562,6.3197,197.71,197.68,4.9109107]
[1755917839764,6.3197,197.71,197.69,4.9109107]
[1755917839959,6.3197,197.71,197.67,2.88]
[1755917840156,6.3197,197.71,197.68,4.9109107]
[1755917840360,6.3197,197.71,197.69,4.9109107]
[1755917840557,6.3197,197.71,197.67,2.88]
[1755917840763,6.3197,197.71,197.68,7.7908297]
[1755917841061,6.3197,197.71,197.69,4.9108297]
[1755917841262,6.3197,197.71,197.68,2.88]
[1755917841460,6.3197,197.71,197.69,4.91087666]
[1755917841763,6.3197,197.71,197.68,2.88]
[1755917842060,6.3197,197.71,197.69,4.91087666]
[1755917842261,6.3197,197.71,197.68,2.88]
[1755917842461,6.3197,197.71,197.69,4.91115709]
[1755917842663,6.3197,197.71,197.68,2.88]
[1755917842861,6.3197,197.71,197.69,4.91115709]
[1755917843064,6.3197,197.71,197.68,2.88]
[1755917843255,6.3197,197.71,197.69,4.91104699]
[1755917843560,6.3197,197.71,197.68,2.88]
[1755917843761,6.3197,197.71,197.69,4.9113512]
[1755917843962,25.2853,197.81,197.7,7.79129669]
[1755917844163,1.26,197.79,197.71,4.91129669]
[1755917844464,1.26,197.79,197.64,7.07483261]
[1755917844465,1.26,197.79,197.72,4.91129669]
[1755917844765,1.26,197.79,197.73,7.79129669]
[1755917844966,1.26,197.79,197.74,4.91129669]
[1755917845168,1.26,197.79,197.75,7.79129669]
[1755917845367,1.26,197.79,197.76,4.9082942]
[1755917845567,6.3176,197.79,197.75,2.88]
[1755917845768,6.3176,197.79,197.76,4.90829189]
[1755917845968,6.3176,197.79,197.75,2.88]
[1755917846167,6.3176,197.79,197.76,4.90842177]
[1755917846370,6.3176,197.79,197.75,2.88]
[1755917846670,6.3176,197.79,197.76,4.90884045]
[1755917846871,6.3176,197.79,197.77,4.77067477]
[1755917847073,6.3176,197.79,197.75,2.88]
[1755917847373,6.3176,197.79,197.76,7.65067477]
[1755917847566,6.3176,197.79,197.76,2.88]
[1755917847870,6.3176,197.79,197.77,4.76985542]
[1755917848065,6.3176,197.79,197.76,2.88]
[1755917848270,5.0576,197.79,197.77,4.76985805]
[1755917848474,5.0576,197.79,197.75,2.88]
[1755917848668,5.0576,197.79,197.76,7.64926839]
[1755917848872,5.0571,197.81,197.78,2.88]
[1755917849165,6.3171,197.81,197.78,2.88]
[1755917849774,6.3171,197.81,197.75,2.88]
[1755917849966,1.26,197.8,197.76,9.65021894]
[1755917850173,6.3174,197.8,197.77,4.76806642]
[1755917850373,6.3174,197.8,197.78,4.76806642]
[1755917850573,6.3174,197.8,197.74,5.0586]
[1755917850775,6.3174,197.8,197.77,2.88]
[1755917851469,5.0568,197.82,197.76,5.0581]
[1755917851674,6.3168,197.82,197.78,2.88]
[1755917851975,1.26,197.81,197.75,2.88]
[1755917852178,25.2806,197.85,197.76,7.64697597]
[1755917852179,1.26,197.8,197.76,7.64697597]
[1755917852476,6.3173,197.8,197.76,2.88]
[1755917852871,1.26,197.79,197.76,2.88]
[1755917853072,1.26,197.79,197.65,340.08]
[1755917853073,1.26,197.83,197.7,2.88]
[1755917853277,1.26,197.83,197.71,9.64845229]
[1755917853478,1.26,197.83,197.72,7.44721229]
[1755917853678,5.0582,197.77,197.73,2.68]
[1755917853976,5.0582,197.77,197.74,2.68]
[1755917854579,5.0576,197.79,197.71,7.7394]
[1755917854774,1.26,197.8,197.73,2.68]
[1755917855079,1.26,197.8,197.74,4.7689061]
[1755917855278,1.26,197.8,197.73,2.68]
[1755917855876,1.26,197.77,197.73,2.68]
[1755917856677,6.3183,197.77,197.73,2.68]
[1755917857577,1.26,197.76,197.73,2.68]
[1755917857774,1.26,197.75,197.7,7.7397]
[1755917857971,1.26,197.75,197.71,12.33901335]
[1755917858169,25.2866,197.8,197.72,4.77243682]
[1755917858377,25.2866,197.8,197.73,4.77420694]
[1755917858378,1.26,197.79,197.73,4.77420694]
[1755917858572,1.26,197.79,197.7,2.68]
[1755917858772,1.26,197.79,197.71,9.66280528]
[1755917858973,1.26,197.79,197.72,4.77432601]
[1755917859278,1.26,197.79,197.7,2.68]
[1755917859470,1.26,197.79,197.71,9.66659235]
[1755917859670,1.26,197.79,197.72,4.77619901]
[1755917859872,1.26,197.79,197.7,2.68]
[1755917860078,1.26,197.79,197.71,9.66659235]
[1755917860278,1.26,197.79,197.72,4.77619901]
[1755917860479,1.26,197.79,197.7,2.68]
[1755917860778,1.26,197.79,197.69,195.57748113]
[1755917860779,6.3185,197.76,197.72,2.68]
[1755917860978,1.26,197.75,197.69,195.57748113]
[1755917861283,25.2866,197.8,197.7,12.34891901]
[1755917861284,1.26,197.73,197.7,12.34891901]
[1755917861573,1.26,197.81,197.72,2.68]
[1755917861773,1.26,197.81,197.74,2.68]
[1755917862270,5.0576,197.79,197.75,9.66864471]
[1755917862478,6.3176,197.79,197.76,4.77719055]
[1755917862775,6.3176,197.79,197.75,2.68]
[1755917862971,6.3176,197.79,197.76,4.77722513]
[1755917863175,6.3176,197.79,197.77,4.77722513]
[1755917863371,6.3179,197.78,197.75,2.68]
[1755917863576,6.3179,197.78,197.76,4.74473547]
[1755917863878,6.3182,197.77,197.7,5.0597]
[1755917864078,6.3182,197.77,197.71,14.3492312]
[1755917864274,1.26,197.76,197.72,12.31626665]
[1755917864474,1.26,197.76,197.73,9.63626665]
[1755917864673,1.26,197.76,197.74,9.63667134]
[1755917864874,1.26,197.76,197.75,4.74498928]
[1755917865076,6.3184,197.76,197.75,4.74498928]
[1755917865278,1.26,197.76,197.69,195.57748113]
[1755917865482,1.26,197.76,197.7,9.63798872]
[1755917865777,6.3193,197.73,197.71,9.63798872]
[1755917865982,6.3193,197.73,197.72,4.74565514]
[1755917868285,5.0586,197.75,197.72,4.74565514]
[1755917868582,5.0586,197.75,197.69,195.57748113]
[1755917868583,1.26,197.75,197.69,195.57748113]
[1755917868774,1.26,197.75,197.7,12.32039221]
[1755917868972,1.26,197.75,197.71,12.32039221]
[1755917869174,1.26,197.78,197.72,4.74686026]
[1755917869379,1.26,197.78,197.71,2.68]
[1755917869583,5.059,197.74,197.72,4.74704321]
[1755917869786,5.059,197.74,197.71,2.68]
[1755917870086,5.059,197.74,197.72,4.74704321]
[1755917870277,5.059,197.74,197.71,2.68]
[1755917870482,5.059,197.74,197.72,4.74729049]
[1755917870683,5.059,197.74,197.71,2.68]
[1755917870884,5.059,197.74,197.72,4.74729049]
[1755917871086,5.059,197.74,197.71,2.68]
[1755917871280,6.319,197.74,197.72,4.74729049]
[1755917871486,6.3193,197.73,197.69,198.25748113]
[1755917871785,5.0593,197.73,197.7,12.32187553]
[1755917871980,5.0593,197.73,197.71,9.64187553]
[1755917872177,5.0585,197.76,197.73,2.68]
[1755917872382,5.0585,197.76,197.74,2.68]
[1755917872582,6.3185,197.76,197.71,2.68]
[1755917872784,5.0587,197.75,197.72,12.32225785]
[1755917872986,1.26,197.74,197.73,4.74777142]
[1755917873381,5.0587,197.75,197.73,4.74777142]
[1755917873681,5.0587,197.75,197.69,195.57748113]
[1755917873977,5.0587,197.75,197.73,2.68]
[1755917874279,6.3187,197.75,197.69,198.25748113]
[1755917874490,1.26,197.77,197.7,9.64375617]
[1755917874682,1.26,197.77,197.71,4.74844412]
[1755917874878,1.26,197.76,197.72,4.74844412]
[1755917875184,1.26,197.75,197.69,198.25748113]
[1755917875383,1.26,197.74,197.7,9.64410364]
[1755917875690,1.26,197.74,197.71,9.64410364]
[1755917875987,1.26,197.74,197.72,4.74868743]
[1755917876186,1.26,197.74,197.7,2.68]
[1755917876387,1.26,197.74,197.71,9.64474666]
[1755917876586,5.0592,197.73,197.72,4.74900313]
[1755917876787,5.0592,197.73,197.72,4.74927064]
[1755917878681,6.3192,197.73,197.72,4.74927064]
[1755917878891,5.0594,197.72,197.69,198.25748113]
[1755917879086,5.0594,197.72,197.7,9.64592241]
[1755917879287,5.0594,197.72,197.71,4.74958387]
[1755917879585,5.0594,197.72,197.65,128.36]
[1755917879586,5.0606,197.68,197.65,2.68]
[1755917879787,1.26,197.72,197.66,4.8638117]
[1755917879988,1.26,197.71,197.67,7.5438117]
[1755917880290,5.0602,197.69,197.67,2.68]
[1755917881787,5.0602,197.69,197.65,2.68]
[1755917882089,5.0602,197.69,197.66,4.86395074]
[1755917882293,5.0602,197.69,197.67,4.86395074]
[1755917882489,5.0605,197.68,197.65,2.68]
[1755917882685,5.0605,197.68,197.66,4.86333546]
[1755917882879,5.0607,197.67,197.6,5.0623]
[1755917883091,25.2985,197.71,197.61,14.05713337]
[1755917883092,1.26,197.7,197.61,14.05713337]
[1755917883285,1.26,197.7,197.62,4.86335307]
[1755917883487,1.26,197.7,197.63,4.86335307]
[1755917883687,1.26,197.68,197.64,4.86335307]
[1755917883883,1.26,197.68,197.61,2.68]
[1755917884087,1.26,197.68,197.62,4.86220454]
[1755917884288,1.26,197.67,197.63,4.86220454]
[1755917884486,1.26,197.68,197.6,2.72]
[1755917884684,1.26,197.68,197.61,4.86030283]
[1755917884888,1.26,197.68,197.62,4.86030283]
[1755917885197,1.26,197.68,197.56,468.32]
[1755917885198,1.26,197.67,197.63,7.58030283]
[1755917885394,1.26,197.67,197.63,2.72]
[1755917885589,5.0607,197.67,197.64,2.72]
[1755917885796,1.26,197.74,197.65,7.57841743]
[1755917885993,5.0591,197.73,197.66,4.85841743]
[1755917886196,5.0591,197.73,197.67,7.57841743]
[1755917886397,5.0591,197.73,197.67,2.72]
[1755917887095,1.26,197.73,197.65,2.72]
[1755917889498,5.06,197.7,197.62,5.0619]
[1755917889697,6.32,197.7,197.66,2.72]
[1755917890200,6.32,197.7,197.62,5.0619]
[1755917890399,6.32,197.7,197.67,2.72]
[1755917891595,5.0615,197.64,197.6,2.72]
[1755917891803,1.26,197.64,197.6,2.72]
[1755917892098,5.0613,197.65,197.61,2.72]
[1755917892399,1.26,197.67,197.57,2.72]
[1755917893696,25.3013,197.69,197.57,2.72]
[1755917893905,1.26,197.68,197.57,2.72]
[1755917894401,5.0619,197.62,197.57,2.72]
[1755917894604,1.26,197.61,197.54,2.72]
[1755917895401,5.0631,197.58,197.54,2.72]
[1755917895601,6.3231,197.58,197.54,2.72]
[1755917898003,5.0635,197.56,197.52,2.72]
[1755917898303,6.3235,197.56,197.52,2.72]
[1755917898503,6.3235,197.56,197.53,2.72]
[1755917899904,6.3235,197.56,197.46,5.0659]
[1755917900107,1.26,197.54,197.47,2.72]
[1755917900605,6.3227,197.59,197.47,2.72]
[1755917901004,6.3227,197.59,197.5,2.72]
[1755917901605,5.0631,197.58,197.5,2.72]
[1755917901905,1.26,197.59,197.5,2.72]
[1755917902307,5.0633,197.57,197.5,2.72]
[1755917902710,5.0636,197.56,197.5,2.72]
[1755917902903,1.26,197.59,197.5,2.72]
[1755917903512,1.26,197.55,197.47,2.72]
[1755917904310,6.3239,197.55,197.47,2.72]
[1755917905814,5.064,197.54,197.47,2.72]
[1755917906011,1.26,197.55,197.47,2.72]
[1755917906207,1.27,197.5,197.47,2.72]
[1755917906409,5.0649,197.51,197.47,2.72]
[1755917906714,6.3349,197.51,197.47,2.72]
[1755917907317,6.3349,197.51,197.44,2.72]
[1755917907318,1.27,197.5,197.44,2.72]
[1755917907518,6.335,197.5,197.44,2.72]
[1755917909820,1.27,197.48,197.44,2.72]
[1755917910216,1.27,197.47,197.44,2.72]
[1755917911021,5.0652,197.49,197.44,2.72]
[1755917911321,1.27,197.52,197.38,2.72]
[1755917911521,5.065,197.5,197.38,2.72]
[1755917911818,1.27,197.57,197.41,2.72]
[1755917912025,5.0639,197.54,197.42,25.3346]
[1755917912221,5.0639,197.54,197.43,2.72]
[1755917912820,5.0642,197.53,197.46,5.0657]
[1755917913019,5.0642,197.53,197.47,2.72]
[1755917913218,1.28,197.55,197.47,2.72]
[1755917913523,1.28,197.51,197.43,2.73]
[1755917914525,5.0655,197.48,197.43,2.73]
[1755917914724,5.0655,197.48,197.44,2.73]
[1755917914925,1.28,197.51,197.44,2.73]
[1755917915128,1.28,197.51,197.4,7.7973]
[1755917915430,1.28,197.48,197.4,2.73]
[1755917915823,1.28,197.48,197.36,2.73]
[1755917916019,5.0668,197.43,197.36,2.73]
[1755917917330,5.0671,197.42,197.36,2.73]
[1755917918431,1.28,197.4,197.36,2.73]
[1755917918930,25.331,197.45,197.36,2.73]
[1755917919128,1.28,197.43,197.36,2.73]
[1755917919534,5.0676,197.4,197.36,2.73]
[1755917919732,5.0676,197.4,197.33,2.73]
[1755917920132,5.0679,197.39,197.33,2.73]
[1755917920534,1.28,197.43,197.33,2.73]
[1755917920730,5.0672,197.41,197.33,7.7991]
[1755917921635,5.0676,197.4,197.33,2.73]
[1755917922336,5.067,197.42,197.33,7.7992]
[1755917922527,5.067,197.42,197.34,2.73]
[1755917923529,25.3271,197.49,197.28,153.4715]
[1755917923530,5.0665,197.44,197.35,2.73]
[1755917923733,1.28,197.49,197.35,2.73]
[1755917924336,1.28,197.49,197.41,2.73]
[1755917924535,0.03239327,197.44,197.41,2.73]
[1755917924734,0.03239327,197.44,197.35,2.73]
[1755917925234,0.03239327,197.44,197.41,5.067]
[1755917925437,0.03239327,197.44,197.43,2.73]
[1755917927527,6.3442,197.53,197.46,2.73]
[1755917928540,1.31,197.58,197.49,7.795]
[1755917929041,6.3729,197.58,197.49,7.795]
[1755917929239,1.31,197.58,197.49,7.795]
[1755917929439,1.31,197.58,197.49,2.73]
[1755917929634,1.31,197.58,197.48,0.03760179]
[1755917930039,5.0645,197.52,197.48,0.03760179]
[1755917930238,6.3745,197.52,197.48,0.03760179]
[1755917930639,5.0645,197.52,197.48,0.03760179]
[1755917930840,1.31,197.54,197.48,0.03760179]
[1755917932542,5.0648,197.51,197.48,0.03760179]
[1755917932743,6.3748,197.51,197.48,0.03760179]
[1755917932943,5.0648,197.51,197.48,0.03760179]
[1755917933140,6.3751,197.5,197.48,0.03760179]
[1755917933342,1.31,197.49,197.48,0.03760179]
[1755917935645,1.31,197.52,197.48,0.03760179]
[1755917935844,1.31,197.51,197.48,0.03760179]
[1755917936242,1.31,197.5,197.48,0.03760179]
[1755917936740,32.39313261,197.55,197.48,0.03760179]
[1755917936942,1.31,197.49,197.48,0.03760179]
[1755917938745,7.07483261,197.55,197.48,0.03760179]
[1755917939044,1.31,197.51,197.48,0.03760179]
[1755917939838,5.064,197.54,197.48,2.76760179]
[1755917940544,372.80803261,197.59,197.48,2.76760179]
[1755917940545,341.73,197.59,197.48,2.76760179]
[1755917940737,1.31,197.59,197.48,2.76760179]
[1755917941540,6.3727,197.59,197.5,5.0647]
[1755917941750,6.3727,197.59,197.51,2.73]
[1755917942246,1.31,197.59,197.53,0.0380327]
[1755917943045,1.31,197.54,197.53,0.0380327]
[1755917944542,5.0637,197.55,197.53,0.0380327]
[1755917944744,6.3737,197.55,197.53,0.0380327]
[1755917945145,1.31,197.54,197.53,0.0380327]
[1755917947852,1.31,197.54,197.45,2.93]
[1755917949552,5.0649,197.51,197.45,2.93]
[1755917950257,0.03881687,197.5,197.45,2.93]
[1755917950450,0.03881687,197.5,197.42,2.93]
[1755917955557,0.03881687,197.5,197.42,7.9968]
[1755917955763,0.03881687,197.5,197.43,2.93]
[1755917956661,5.0653,197.49,197.43,2.93]
[1755917962164,5.0653,197.49,197.43,7.9965]
[1755917969866,5.0655,197.48,197.43,2.93]
[1755917970167,5.0655,197.48,197.45,2.93]
[1755917972261,6.3655,197.48,197.45,2.93]
[1755917972467,5.0655,197.48,197.46,2.93]
[1755917972769,5.0655,197.48,197.42,5.0668]
[1755917972966,5.0655,197.48,197.43,2.93]
[1755917974868,5.0655,197.48,197.38,127.78]
[1755917975070,6.3655,197.48,197.45,2.71]
[1755917975571,6.40183998,197.48,197.45,2.71]
[1755917977271,5.10183998,197.48,197.46,2.71]
[1755917977464,0.03633998,197.48,197.38,127.78]
[1755917977665,1.3,197.58,197.44,7.07483261]
[1755917977870,1.3,197.58,197.45,2.74515627]
[1755917978171,1.3,197.58,197.45,2.71]
[1755917978471,6.3629,197.58,197.5,5.0648]
[1755917978664,6.3629,197.58,197.51,2.71]
[1755917978972,6.3629,197.58,197.52,0.03326465]
[1755917979475,1.33,197.62,197.53,2.71]
[1755917980174,1.33,197.62,197.56,0.03309641]
[1755917980976,26.6394,197.62,197.56,0.03309641]
[1755917981170,25.3094,197.62,197.56,0.03309641]
[1755917981670,1.33,197.59,197.56,0.03309641]
[1755917981871,1.33,197.58,197.56,0.03309641]
[1755917982072,1.33,197.61,197.56,0.03309641]
[1755917982272,6.3931,197.57,197.56,0.03309641]
[1755917984869,365.7867,197.64,197.56,0.03309641]
[1755917985074,1.33,197.61,197.58,2.71]
[1755917985274,1.33,197.61,197.56,0.03309641]
[1755917985574,1.33,197.61,197.56,2.74309641]
[1755917985773,5.0625,197.6,197.56,2.74309641]
[1755917985975,6.3925,197.6,197.56,2.74309641]
[1755917986774,1.33,197.6,197.57,2.71]
[1755917986974,6.3918,197.62,197.56,2.74309641]
[1755917989180,5.0622,197.61,197.56,2.74309641]
[1755917989377,6.3922,197.61,197.56,2.74309641]
[1755917989780,5.0622,197.61,197.56,2.74309641]
[1755917989976,5.0622,197.61,197.56,0.03309641]
[1755917990271,1.33,197.6,197.57,2.71]
[1755917990477,5.0622,197.61,197.57,2.71]
[1755917990879,5.0622,197.61,197.56,0.03309641]
[1755917991082,5.0622,197.61,197.57,2.71]
[1755917991578,6.3922,197.61,197.57,2.71]
[1755917991778,6.3922,197.61,197.56,0.03309641]
[1755917991979,5.0622,197.61,197.57,2.71]
[1755917992175,5.0622,197.61,197.56,0.03309641]
[1755917992378,5.0622,197.61,197.59,2.71]
[1755917994077,1.33,197.66,197.6,2.71]
[1755917994774,1.33,197.66,197.61,0.03523985]
[1755917995178,1.33,197.66,197.62,2.71]
[1755917995378,1.33,197.66,197.61,0.03523985]
[1755917995686,1.33,197.67,197.61,0.03523985]
[1755917995980,1.33,197.67,197.64,2.71]
[1755917996776,5.0601,197.69,197.62,2.71]
[1755917997184,5.0601,197.69,197.62,7.7717]
[1755918000282,5.0608,197.67,197.62,2.71]
[1755918000482,1.33,197.66,197.62,2.71]
[1755918000683,1.33,197.71,197.62,2.71]
[1755918001086,1.33,197.72,197.62,2.74860368]
[1755918001579,6.391,197.66,197.62,2.71]
[1755918001786,1.33,197.65,197.62,2.71]
[1755918002181,1.33,197.65,197.62,2.74839413]
[1755918002987,5.061,197.66,197.62,2.74839413]
[1755918003288,6.391,197.66,197.62,2.77839413]
[1755918003486,6.391,197.66,197.63,2.74]
[1755918003784,350.5775,197.75,197.64,2.74]
[1755918003785,1.33,197.7,197.64,2.74]
[1755918004378,6.3899,197.7,197.64,2.74]
[1755918004578,1.33,197.69,197.65,0.03728067]
[1755918004886,25.2903,197.77,197.65,0.03728067]
[1755918005086,1.33,197.75,197.65,2.77728067]
[1755918005588,5.0595,197.72,197.65,2.77728067]